lending/lending_fUSD_20240621
["ID","MTS","AMOUNT","RATE_DAILY","PERIOD"]
[330101548,1718991065337,-854.73,0.00023276,4]
[330101549,1718991065346,-553.24,0.00023276,4]
[330101550,1718991065355,-500.0,0.00023276,4]
[330101551,1718991065365,-500.0,0.00023276,4]
[330101552,1718991065374,-500.0,0.00023276,4]
[330101553,1718991065384,-500.0,0.00023276,4]
[330101554,1718991065393,-508.41,0.00023276,4]
[330101555,1718991065402,-500.0,0.00023276,4]
[330101556,1718991065412,-500.0,0.00023276,4]
[330101557,1718991065421,-500.0,0.00023276,4]
[330101558,1718991065431,-500.0,0.00023276,4]
[330101559,1718991065440,-500.0,0.00023276,4]
[330101560,1718991065449,-500.0,0.00023276,4]
[330101561,1718991065458,-500.0,0.00023276,4]
[330101562,1718991065524,-500.0,0.00023276,4]
[330101563,1718991065534,-772.45,0.00023276,4]
[330101564,1718991065543,-500.0,0.00023276,4]
[330101565,1718991065552,-500.0,0.00023276,4]
[330101566,1718991065562,-192.84,0.00023276,4]
[330101567,1718991065572,-500.0,0.00023276,4]
[330101568,1718991065582,-500.0,0.00023276,4]
[330101569,1718991065592,-500.0,0.00023276,4]
[330101570,1718991065601,-500.0,0.00023276,2]
[330101571,1718991065610,-500.0,0.00023276,4]
[330101572,1718991065620,-500.0,0.00023276,4]
[330101573,1718991065630,-500.0,0.00023276,4]
[330101574,1718991065639,-500.0,0.00023276,4]
[330101575,1718991065648,-500.0,0.00023276,4]
[330101576,1718991065658,-500.0,0.00023276,4]
[330101577,1718991065667,-500.0,0.00023276,4]
[330101578,1718991065676,-1474.02,0.00023276,4]
[330101579,1718991065685,-500.0,0.00023276,4]
[330101580,1718991065694,-500.0,0.00023276,4]
[330101581,1718991065703,-500.0,0.00023276,4]
[330101582,1718991065712,-1769.35,0.00023276,4]
[330101583,1718991065721,-500.0,0.00023276,4]
[330101584,1718991065731,-500.0,0.00023276,4]
[330101585,1718991065740,-500.0,0.00023276,4]
[330101586,1718991065749,-1112.63,0.00023276,4]
[330101587,1718991065761,-569.56,0.00023276,4]
[330101588,1718991065771,-500.0,0.00023276,4]
[330101589,1718991065780,-500.0,0.00023276,4]
[330101590,1718991065789,-500.0,0.00023276,4]
[330101591,1718991065797,-210.03707581,0.00023276,4]
[330101592,1718991065810,-500.0,0.00023276,4]
[330101593,1718991065820,-500.0,0.00023276,4]
[330101594,1718991065829,-500.0,0.00023276,4]
[330101595,1718991065839,-758.73,0.00023276,4]
[330101596,1718991065848,-594.05,0.00023276,4]
[330101597,1718991065858,-277.52637299,0.00023276,4]
[330101598,1718991065868,-1059.07,0.00023276,4]
[330101599,1718991065877,-500.0,0.00023276,4]
[330101600,1718991065886,-300.03459106,0.00023276,4]
[330101601,1718991066199,-861.13551302,0.00021906,2]
[330101602,1718991066211,-766.46587318,0.00021906,2]
[330101603,1718991066220,-501.84,0.00023273,4]
[330101604,1718991066229,-199.96540894,0.00023276,4]
[330101605,1718991066239,-965.65,0.00023276,4]
[330101606,1718991066249,-500.0,0.00023276,4]
[330101607,1718991066260,-906.33,0.00023276,4]
[330101608,1718991066269,-923.38,0.00023276,4]
[330101609,1718991066278,-1038.94,0.00023276,4]
[330101610,1718991066287,-2621.17,0.00023276,4]
[330101611,1718991066297,-500.0,0.00023276,4]
[330101612,1718991066306,-697.22,0.00023276,4]
[330101613,1718991066315,-500.0,0.00023276,4]
[330101614,1718991066325,-500.0,0.00023276,4]
[330101615,1718991066333,-714.72,0.00023276,4]
[330101616,1718991066342,-1897.24,0.00023276,4]
[330101617,1718991066351,-753.1,0.00023276,4]
[330101618,1718991066360,-500.0,0.00023276,4]
[330101619,1718991066369,-500.0,0.00023276,4]
[330101620,1718991066379,-1285.76,0.00023276,4]
[330101621,1718991066388,-500.0,0.00023276,4]
[330101622,1718991066397,-502.33,0.00023276,4]
[330101623,1718991066406,-500.0,0.00023276,4]
[330101624,1718991066415,-534.86,0.00023276,4]
[330101625,1718991066424,-500.0,0.00023276,4]
[330101626,1718991066434,-1041.21,0.00023276,4]
[330101627,1718991066443,-1219.33,0.00023276,4]
[330101628,1718991066452,-721.97,0.00023276,4]
[330101629,1718991066461,-500.0,0.00023276,4]
[330101630,1718991066471,-500.0,0.00023276,4]
[330101631,1718991066480,-500.0,0.00023276,4]
[330101632,1718991066493,-500.0,0.00023276,4]
[330101633,1718991066504,-500.0,0.00023276,4]
[330101634,1718991066519,-773.32,0.00023276,4]
[330101635,1718991066528,-1205.31,0.00023276,4]
[330101636,1718991066537,-549.09,0.00023276,4]
[330101637,1718991066548,-715.25,0.00023276,4]
[330101638,1718991066558,-500.0,0.00023276,4]
[330101639,1718991066567,-500.0,0.00023276,4]
[330101640,1718991066577,-563.92,0.00023276,4]
[330101641,1718991066588,-500.0,0.00023276,4]
[330101642,1718991066598,-511.29,0.00023276,4]
[330101643,1718991066607,-500.0,0.00023276,4]
[330101644,1718991066618,-939.71,0.00023276,4]
[330101645,1718991066628,-235.11290859,0.00023276,4]
[330101646,1718991066637,-1777.62,0.00023276,4]
[330101647,1718991066648,-500.0,0.00023276,4]
[330101648,1718991066659,-500.0,0.00023285,4]
[330101649,1718991066669,-778.08,0.00023285,4]
[330101650,1718991066681,-711.57,0.00023285,4]
[330101651,1718991066692,-500.0,0.00023285,4]
[330101652,1718991066702,-500.0,0.00023285,4]
[330101653,1718991066713,-500.0,0.00023285,4]
[330101654,1718991066723,-500.0,0.00023285,4]
[330101655,1718991066732,-811.37,0.00023285,4]
[330101656,1718991066741,-500.0,0.00023285,4]
[330101657,1718991066751,-500.0,0.00023285,4]
[330101658,1718991066762,-1988.28,0.00023285,4]
[330101659,1718991066771,-1545.69,0.00023285,4]
[330101660,1718991066780,-885.76,0.00023285,4]
[330101661,1718991066788,-846.41,0.00023285,4]
[330101662,1718991066797,-1105.64,0.00023285,4]
[330101663,1718991066806,-1441.35,0.00023285,4]
[330101664,1718991066815,-1115.8,0.00023285,4]
[330101665,1718991066824,-968.43,0.00023285,4]
[330101666,1718991066833,-2726.77,0.00023285,4]
[330101667,1718991066842,-500.0,0.00023285,4]
[330101668,1718991066852,-635.71,0.00023285,4]
[330101669,1718991066861,-500.0,0.00023285,4]
[330101670,1718991066870,-11.04339029,0.00023285,4]
[330101671,1718991067002,-500.0,0.00022177,4]
[330101672,1718991067013,-500.0,0.00022179,4]
[330101673,1718991067023,-500.0,0.00022451,4]
[330101674,1718991067032,-500.0,0.00022453,4]
[330101675,1718991067042,-1952.02,0.00022463,4]
[330101676,1718991067051,-500.0,0.00022725,4]
[330101677,1718991067061,-500.0,0.00022727,4]
[330101678,1718991067070,-1952.02,0.00022737,4]
[330101679,1718991067080,-1952.02,0.00023011,4]
[330101680,1718991067089,-4262.09660971,0.00023285,4]
[330101681,1718991067098,-3752.39,0.00023285,4]
[330101682,1718991067108,-2270.24,0.00023285,4]
[330101683,1718991067118,-500.0,0.00023285,4]
[330101684,1718991067127,-12849.54,0.00023285,4]
[330101685,1718991067137,-3165.23,0.00023285,4]
[330101686,1718991067146,-847.05,0.00023285,4]
[330101687,1718991067156,-4761.65,0.00023285,4]
[330101688,1718991067167,-2414.13,0.00023285,4]
[330101689,1718991067177,-500.0,0.00023287,4]
[330101690,1718991067187,-500.0,0.00023287,4]
[330101691,1718991067196,-995.64,0.00023287,4]
[330101692,1718991067207,-655.96,0.00023287,4]
[330101693,1718991067216,-658.51,0.00023287,4]
[330101694,1718991067225,-531.81,0.00023287,4]
[330101695,1718991067235,-744.26,0.00023287,4]
[330101696,1718991067244,-500.0,0.00023287,4]
[330101697,1718991067254,-283.70749908,0.00023287,4]
[330101698,1718991067266,-500.0,0.00023287,4]
[330101699,1718991067276,-500.0,0.00023287,4]
[330101700,1718991067285,-742.09,0.00023287,4]
[330101701,1718991067295,-272.22324512,0.00023287,4]
[330101702,1718991067305,-500.0,0.00023287,4]
[330101703,1718991067314,-788.95,0.00023287,4]
[330101704,1718991067324,-500.0,0.00023287,4]
[330101705,1718991067334,-811.67,0.00023287,4]
[330101706,1718991067344,-576.54,0.00023287,4]
[330101707,1718991067353,-740.11,0.00023287,4]
[330101708,1718991067363,-500.0,0.00023287,4]
[330101709,1718991067373,-532.25,0.00023287,4]
[330101710,1718991067382,-1390.89,0.00023287,4]
[330101711,1718991067391,-500.00000085,0.00023287,4]
[330101712,1718991067401,-621.86,0.00023287,4]
[330101713,1718991067410,-499.90241132,0.00023287,4]
[330101714,1718991067422,-0.09758868,0.00023287,4]
[330101715,1718991067431,-500.0,0.00023287,4]
[330101716,1718991067441,-500.0,0.00023287,4]
[330101717,1718991067450,-500.0,0.00023287,4]
[330101718,1718991067459,-500.0,0.00023287,4]
[330101719,1718991067468,-500.0,0.00023287,4]
[330101720,1718991067478,-500.0,0.00023287,4]
[330101721,1718991067487,-729.92,0.00023287,4]
[330101722,1718991067502,-747.87,0.00023287,4]
[330101723,1718991067515,-500.0,0.00023287,4]
[330101724,1718991067524,-174.70059569,0.000235,2]
[330101725,1718991067535,-809.02,0.0002354,4]
[330101726,1718991067544,-607.62,0.0002354,4]
[330101727,1718991067554,-1381.07,0.0002354,4]
[330101728,1718991067563,-1642.65,0.00023547,4]
[330101729,1718991067574,-500.0,0.00023547,4]
[330101730,1718991067584,-978.25,0.00023547,4]
[330101731,1718991067593,-2112.55,0.00023548,4]
[330101732,1718991067603,-2228.42,0.00023548,4]
[330101733,1718991067613,-2227.32,0.00023548,4]
[330101734,1718991067622,-1250.08,0.00023548,4]
[330101735,1718991067631,-1964.51,0.00023548,4]
[330101736,1718991067641,-5117.57,0.00023548,4]
[330101737,1718991067650,-4615.24,0.00023548,4]
[330101738,1718991067659,-6593.77,0.00023548,4]
[330101739,1718991067670,-1613.58,0.00023548,4]
[330101740,1718991067680,-4640.51,0.00023548,4]
[330101741,1718991067690,-2613.48,0.00023548,4]
[330101742,1718991067699,-1707.02,0.00023548,4]
[330101743,1718991067709,-6483.65,0.00023548,4]
[330101744,1718991067718,-503.57,0.00023548,4]
[330101745,1718991067727,-701.81,0.00023548,4]
[330101746,1718991067736,-2832.55,0.00023548,4]
[330101747,1718991067746,-2689.75,0.00023548,4]
[330101748,1718991067756,-500.0,0.00023548,4]
[330101749,1718991067768,-2000.06,0.00023548,4]
[330101750,1718991067778,-3251.41,0.00023548,4]
[330101751,1718991067788,-2188.55,0.00023548,4]
[330101752,1718991067797,-2431.29,0.00023548,4]
[330101753,1718991067807,-7810.43,0.00023548,4]
[330101754,1718991067816,-500.0,0.00023548,4]
[330101755,1718991067826,-643.33,0.00023548,4]
[330101756,1718991067836,-3995.39,0.00023548,4]
[330101757,1718991067845,-175.96,0.00023548,4]
[330101758,1718991067855,-3344.75,0.00023548,4]
[330101759,1718991067864,-9018.71,0.00023548,4]
[330101760,1718991067873,-5283.93,0.00023548,4]
[330101761,1718991067883,-2784.89,0.00023548,4]
[330101762,1718991067892,-1033.86,0.00023548,4]
[330101763,1718991067902,-1160.67,0.00023548,4]
[330101764,1718991067912,-2147.09,0.00023548,4]
[330101765,1718991067921,-2161.62,0.00023548,4]
[330101766,1718991067931,-26601.48181563,0.00023548,4]
[330101767,1718991067943,-6374.64818437,0.00023548,4]
[330101768,1718991067953,-3218.08,0.00023548,4]
[330101769,1718991067962,-500.0,0.00023549,4]
[330101770,1718991067971,-898.14,0.00023549,4]
[330101771,1718991067980,-500.0,0.00023549,4]
[330101772,1718991067990,-1030.59,0.00023549,4]
[330101773,1718991067999,-704.08,0.00023549,4]
[330101774,1718991068008,-500.0,0.00023549,4]
[330101775,1718991068022,-539.94,0.00023549,4]
[330101776,1718991068032,-500.0,0.00023549,4]
[330101777,1718991068042,-500.0,0.00023549,4]
[330101778,1718991068053,-1013.17,0.00023549,4]
[330101779,1718991068062,-500.0,0.00023549,4]
[330101780,1718991068072,-613.35,0.00023549,4]
[330101781,1718991068082,-833.51,0.00023549,4]
[330101782,1718991068092,-840.13,0.00023549,4]
[330101783,1718991068102,-500.0,0.00023549,4]
[330101784,1718991068111,-500.0,0.00023549,4]
[330101785,1718991068121,-500.0,0.00023549,4]
[330101786,1718991068131,-500.0,0.00023549,4]
[330101787,1718991068139,-746.6,0.00023549,4]
[330101788,1718991068149,-500.0,0.00023549,4]
[330101789,1718991068159,-500.0,0.00023549,4]
[330101790,1718991068168,-500.0,0.00023549,4]
[330101791,1718991068178,-500.0,0.00023549,4]
[330101792,1718991068188,-500.0,0.00023549,4]
[330101793,1718991068197,-500.0,0.00023549,4]
[330101794,1718991068207,-500.0,0.00023549,4]
[330101795,1718991068216,-500.0,0.00023549,4]
[330101796,1718991068226,-500.0,0.00023549,4]
[330101797,1718991068235,-500.0,0.00023549,4]
[330101798,1718991068244,-500.0,0.00023549,4]
[330101799,1718991068255,-500.0,0.00023549,4]
[330101800,1718991068269,-500.0,0.00023549,4]
[330101801,1718991068278,-500.0,0.00023549,4]
[330101802,1718991068288,-712.07,0.00023549,4]
[330101803,1718991068298,-1108.2,0.00023549,4]
[330101804,1718991068308,-500.0,0.00023549,4]
[330101805,1718991068319,-500.0,0.00023549,4]
[330101806,1718991068328,-511.98,0.00023549,4]
[330101807,1718991068338,-702.16,0.00023549,4]
[330101808,1718991068348,-500.0,0.00023549,4]
[330101809,1718991068357,-700.08,0.00023549,4]
[330101810,1718991068366,-500.0,0.00023549,4]
[330101811,1718991068376,-924.62,0.00023549,4]
[330101812,1718991068385,-500.0,0.00023549,4]
[330101813,1718991068394,-1537.14,0.00023549,4]
[330101814,1718991068405,-500.0,0.00023549,4]
[330101815,1718991068414,-1149.22,0.00023549,4]
[330101816,1718991068424,-500.0,0.00023549,4]
[330101817,1718991068433,-500.0,0.00023549,4]
[330101818,1718991068443,-708.0,0.00023549,4]
[330101819,1718991068452,-500.0,0.00023549,4]
[330101820,1718991068462,-500.0,0.00023549,4]
[330101821,1718991068471,-500.0,0.00023549,4]
[330101822,1718991068480,-500.0,0.00023549,4]
[330101823,1718991068490,-508.25,0.00023549,4]
[330101824,1718991068499,-579.98,0.00023549,4]
[330101825,1718991068513,-571.41,0.00023549,4]
[330101826,1718991068524,-642.8,0.00023549,4]
[330101827,1718991068533,-500.0,0.00023549,4]
[330101828,1718991068542,-668.3,0.00023549,4]
[330101829,1718991068552,-500.0,0.00023549,4]
[330101830,1718991068564,-638.78,0.00023549,4]
[330101831,1718991068573,-726.73,0.00023549,4]
[330101832,1718991068582,-731.34,0.00023549,4]
[330101833,1718991068593,-500.0,0.00023549,4]
[330101834,1718991068603,-934.13,0.00023549,4]
[330101835,1718991068613,-521.3,0.00023549,4]
[330101836,1718991068623,-500.0,0.00023549,4]
[330101837,1718991068633,-500.0,0.00023549,4]
[330101838,1718991068642,-522.48,0.00023549,4]
[330101839,1718991068652,-696.93,0.00023549,4]
[330101840,1718991068662,-837.37,0.00023549,4]
[330101841,1718991068672,-500.0,0.00023549,4]
[330101842,1718991068683,-500.0,0.00023549,4]
[330101843,1718991068691,-1298.27,0.00023549,4]
[330101844,1718991068701,-676.04,0.00023549,4]
[330101845,1718991068710,-500.0,0.00023549,4]
[330101846,1718991068720,-500.0,0.00023549,4]
[330101847,1718991068730,-955.91,0.00023549,4]
[330101848,1718991068739,-565.69,0.00023549,4]
[330101849,1718991068749,-500.0,0.00023549,4]
[330101850,1718991068758,-500.0,0.00023549,4]
[330101851,1718991068772,-434.58,0.00023549,7]
[330101852,1718991068781,-500.0,0.00023549,4]
[330101853,1718991068790,-500.0,0.00023549,4]
[330101854,1718991068799,-1005.8,0.00023549,4]
[330101855,1718991068807,-1487.67,0.00023549,4]
[330101856,1718991068816,-500.0,0.00023549,4]
[330101857,1718991068825,-500.0,0.00023549,4]
[330101858,1718991068834,-500.0,0.00023549,4]
[330101859,1718991068843,-500.0,0.00023549,4]
[330101860,1718991068853,-500.0,0.00023549,4]
[330101861,1718991068862,-1302.06,0.00023549,4]
[330101862,1718991068871,-500.0,0.00023549,4]
[330101863,1718991068881,-500.0,0.00023549,4]
[330101864,1718991068891,-1105.45,0.00023549,4]
[330101865,1718991068901,-500.0,0.00023549,4]
[330101866,1718991068910,-500.0,0.00023549,4]
[330101867,1718991068919,-861.17,0.00023549,4]
[330101868,1718991068929,-500.0,0.00023549,4]
[330101869,1718991068939,-500.0,0.00023549,4]
[330101870,1718991068948,-500.0,0.00023549,4]
[330101871,1718991068958,-500.0,0.00023549,4]
[330101872,1718991068968,-500.0,0.00023549,4]
[330101873,1718991068977,-500.0,0.00023549,4]
[330101874,1718991068987,-500.0,0.00023549,4]
[330101875,1718991068997,-525.71,0.00023549,4]
[330101876,1718991069007,-500.0,0.00023549,4]
[330101877,1718991069026,-623.08,0.00023549,4]
[330101878,1718991069034,-494.32654474,0.00023549,4]
[330101879,1718991069043,-500.0,0.00023549,4]
[330101880,1718991069053,-1605.24,0.00023549,4]
[330101881,1718991069063,-1109.1,0.00023549,4]
[330101882,1718991069072,-500.0,0.00023549,4]
[330101883,1718991069080,-255.65976938,0.00023549,4]
[330101884,1718991069089,-500.0,0.00023549,4]
[330101885,1718991069098,-812.48,0.00023549,4]
[330101886,1718991069107,-500.0,0.00023549,4]
[330101887,1718991069115,-500.0,0.00023549,4]
[330101888,1718991069125,-522.66,0.00023549,4]
[330101889,1718991069134,-500.0,0.00023549,4]
[330101890,1718991069143,-500.0,0.00023549,4]
[330101891,1718991069152,-500.0,0.00023549,4]
[330101892,1718991069162,-2349.44,0.00023549,4]
[330101893,1718991069171,-542.96,0.00023549,4]
[330101894,1718991069181,-1118.35,0.00023549,4]
[330101895,1718991069191,-500.0,0.00023549,4]
[330101896,1718991069200,-500.0,0.00023549,4]
[330101897,1718991069210,-500.0,0.00023549,4]
[330101898,1718991069219,-184.83832136,0.00023549,4]
[330101899,1718991069230,-500.0,0.00023549,4]
[330101900,1718991069239,-500.0,0.00023549,4]
[330101901,1718991069248,-1117.24,0.00023549,4]
[330101902,1718991069258,-70.73890689,0.00023549,4]
[330101903,1718991070335,-332.587255,0.00023549,4]
[330101904,1718991070350,-714.81383811,0.00023549,4]
[330101905,1718991070361,-1022.28,0.00023549,4]
[330101906,1718991070371,-500.0,0.00023549,4]
[330101907,1718991070382,-500.0,0.00023549,4]
[330101908,1718991070393,-2155.83,0.00023549,4]
[330101909,1718991070404,-634.94,0.00023549,4]
[330101910,1718991070415,-500.0,0.00023549,4]
[330101911,1718991070425,-1399.02,0.00023549,4]
[330101912,1718991070549,-1150.63,0.00023549,4]
[330101913,1718991070559,-947.93,0.00023549,4]
[330101914,1718991070569,-917.58,0.00023549,4]
[330101915,1718991070580,-500.0,0.00023549,4]
[330101916,1718991070591,-500.0,0.00023549,4]
[330101917,1718991070601,-800.03,0.00023549,4]
[330101918,1718991070610,-910.29,0.00023549,4]
[330101919,1718991070621,-871.28,0.00023549,4]
[330101920,1718991070631,-707.22,0.00023549,4]
[330101921,1718991070640,-721.45,0.00023549,4]
[330101922,1718991070650,-500.0,0.00023549,4]
[330101923,1718991070659,-1335.35945974,0.00023549,4]
[330101924,1718991070671,-662.18,0.00023549,4]
[330101927,1718991070776,-500.0,0.00022999,4]
[330101928,1718991070785,-367.1,0.00023549,4]
[330101929,1718991070796,-473.26955168,0.00023549,4]
[330101931,1718991070808,-114.35098858,0.00023549,4]
[330101932,1718991070817,-1217.47,0.00023549,4]
[330101933,1718991070827,-609.35,0.00023549,4]
[330101934,1718991070837,-539.26,0.00023549,4]
[330101935,1718991070847,-1243.83,0.00023549,4]
[330101936,1718991070856,-910.08,0.00023549,4]
[330101937,1718991070866,-2065.38,0.00023549,4]
[330101938,1718991070876,-2397.68,0.00023549,4]
[330101939,1718991070885,-679.24,0.00023549,4]
[330101940,1718991070895,-1399.75,0.00023549,4]
[330101941,1718991070905,-700.96,0.00023549,4]
[330101942,1718991070915,-2171.32,0.00023549,4]
[330101943,1718991070924,-500.0,0.00023549,4]
[330101944,1718991070935,-639.07,0.00023549,4]
[330101945,1718991070944,-640.29,0.00023549,4]
[330101946,1718991070954,-399.50936921,0.00023549,4]
[330101947,1718991070963,-2562.05,0.00023549,4]
[330101948,1718991070973,-500.0,0.00023549,4]
[330101949,1718991070983,-1478.18,0.00023549,4]
[330101950,1718991070993,-500.0,0.00023549,4]
[330101951,1718991071003,-531.96,0.00023549,4]
[330101952,1718991071015,-1171.77,0.00023549,4]
[330101953,1718991071025,-688.59,0.00023549,4]
[330101954,1718991071035,-623.95435525,0.00023549,4]
[330101955,1718991071045,-500.0,0.00023549,4]
[330101956,1718991071055,-212.51713938,0.00023549,4]
[330101957,1718991071067,-811.13921495,0.00023549,4]
[330101958,1718991071079,-248.35364567,0.00023549,4]
[330101959,1718991071088,-500.0,0.00023549,4]
[330101960,1718991071097,-344.63863299,0.00023549,4]
[330101961,1718991071109,-2600.72136701,0.00023549,4]
[330101962,1718991071119,-500.0,0.00023549,4]
[330101963,1718991071128,-1467.19,0.00023549,4]
[330101964,1718991071138,-710.57,0.00023549,4]
[330101965,1718991071147,-661.54,0.00023549,4]
[330101966,1718991071157,-500.0,0.00023549,4]
[330101967,1718991071167,-629.62,0.00023549,4]
[330101968,1718991071177,-3697.34,0.00023549,4]
[330101969,1718991071186,-655.01,0.00023549,4]
[330101970,1718991071196,-500.0,0.00023549,4]
[330101971,1718991071206,-694.0,0.00023549,4]
[330101972,1718991071215,-500.0,0.00023549,4]
[330101973,1718991071225,-22390.58,0.00023549,4]
[330101974,1718991071236,-500.0,0.00023549,4]
[330101975,1718991071246,-2889.89,0.00023549,4]
[330101976,1718991071256,-1093.35,0.00023549,4]
[330101977,1718991071269,-500.0,0.00023549,4]
[330101978,1718991071279,-500.0,0.00023549,4]
[330101979,1718991071290,-500.0,0.00023549,4]
[330101980,1718991071300,-2343.28,0.00023549,4]
[330101981,1718991071310,-694.8,0.00023549,4]
[330101982,1718991071320,-1540.92,0.00023549,4]
[330101983,1718991071330,-735.45,0.00023549,4]
[330101984,1718991071339,-500.0,0.00023549,4]
[330101985,1718991071349,-1058.1,0.00023549,4]
[330101986,1718991071358,-1944.21,0.00023549,4]
[330101987,1718991071368,-1428.73,0.00023549,4]
[330101988,1718991071377,-500.0,0.00023549,4]
[330101989,1718991071386,-733.12,0.00023549,4]
[330101990,1718991071396,-500.0,0.00023549,4]
[330101991,1718991071405,-818.18,0.00023549,4]
[330101992,1718991071415,-500.0,0.00023549,4]
[330101993,1718991071425,-849.22,0.00023549,4]
[330101994,1718991071435,-500.0,0.00023549,4]
[330101995,1718991071446,-991.48,0.00023549,4]
[330101996,1718991071456,-500.0,0.00023549,4]
[330101997,1718991071466,-1606.1,0.00023549,4]
[330101998,1718991071476,-804.03,0.00023549,4]
[330101999,1718991071486,-994.93,0.00023549,4]
[330102000,1718991071497,-500.0,0.00023549,4]
[330102001,1718991071507,-500.0,0.00023549,4]
[330102002,1718991071526,-2297.03,0.00023549,4]
[330102003,1718991071536,-500.0,0.00023549,4]
[330102004,1718991071545,-637.26,0.00023549,4]
[330102005,1718991071558,-718.56,0.00023549,4]
[330102006,1718991071567,-928.11,0.00023549,4]
[330102007,1718991071576,-1655.79,0.00023549,4]
[330102008,1718991071585,-1537.71,0.00023549,4]
[330102009,1718991071597,-388.71823849,0.00023549,4]
[330102010,1718991071607,-604.61,0.00023549,4]
[330102011,1718991071617,-500.0,0.00023549,4]
[330102012,1718991071627,-500.0,0.00023549,4]
[330102013,1718991071638,-1222.36,0.00023549,4]
[330102014,1718991071648,-908.98,0.00023549,4]
[330102015,1718991071658,-668.91,0.00023549,4]
[330102016,1718991071668,-533.73,0.00023549,4]
[330102018,1718991071677,-500.0,0.00023549,4]
[330102019,1718991071687,-1075.97,0.00023549,4]
[330102020,1718991071697,-1495.2,0.00023549,4]
[330102021,1718991071706,-772.88,0.00023549,4]
[330102022,1718991071717,-597.31863401,0.00023549,4]
[330102023,1718991071726,-1743.39,0.00023549,4]
[330102024,1718991071736,-1365.42,0.00023549,4]
[330102025,1718991071746,-706.69176049,0.00023549,4]
[330102026,1718991071759,-317.91823951,0.00023549,4]
[330102027,1718991071774,-500.0,0.00023549,4]
[330102028,1718991071784,-1677.55,0.00023549,4]
[330102029,1718991071793,-791.26,0.00023549,4]
[330102030,1718991071803,-500.0,0.00023549,4]
[330102031,1718991071813,-500.0,0.00023549,4]
[330102032,1718991071822,-1917.92,0.00023549,4]
[330102033,1718991071832,-500.0,0.00023549,4]
[330102034,1718991071842,-821.89,0.00023549,4]
[330102035,1718991071852,-500.0,0.00023549,4]
[330102036,1718991071863,-2715.91,0.00023549,4]
[330102037,1718991071873,-2232.82,0.00023549,4]
[330102038,1718991071882,-641.92,0.00023549,4]
[330102039,1718991071892,-500.0,0.00023549,4]
[330102040,1718991071901,-595.1,0.00023549,4]
[330102041,1718991071912,-3946.49,0.00023549,4]
[330102042,1718991071921,-500.0,0.00023549,4]
[330102043,1718991071931,-686.32,0.00023549,4]
[330102044,1718991071940,-250.0,0.0002355,4]
[330102045,1718991071950,-500.0,0.0002355,4]
[330102046,1718991071960,-500.0,0.0002355,4]
[330102047,1718991071969,-500.0,0.0002355,4]
[330102048,1718991071979,-523.27,0.0002355,4]
[330102049,1718991071988,-500.0,0.0002355,4]
[330102050,1718991071998,-500.0,0.0002355,4]
[330102051,1718991072007,-500.0,0.0002355,4]